Cogmind - Beta 16.1 @@@ ROGUE MODE // 2026.04.04 @ 19:10:01 // Winter2022/Polymind Player: the Result: Destroyed by as-44580 with Assembled Rifle Performance ------------- Evolutions (1) 500 Regions Visited (5) 1000 Robots Destroyed (24) 120 Value Destroyed (345) 345 Prototype IDs (5) 100 Alien Tech Used (0) 0 Bonus (3761) 3761 TOTAL SCORE: 5056 Bonus ------- Polymind Skill 3400 Follower Combat Kills 105 Aligned with FarCom 300 Friendly Fire -44 Cogmind --------- Core Integrity 0/400 Matter 0/0 Energy 24/25 System Corruption 0% Temperature Cool (2) Movement Hovering (80) Location -9/Exiles Parts ------- > --- POWER (1) -------- Heavy Deuterium Engine > --- PROPULSION (1) --- Combat Antigrav System > --- UTILITY (22) ----- Advanced Launcher Guidance Computer Improved Target Analyzer Experimental Core Analyzer Improved Armor Integrity Analyzer EX Chip 1 EX Chip 1 EX Chip 1 EX Chip 1 EX Chip 1 EX Chip 1 EX Chip 1 EX Chip 1 EX Chip 1 EX Chip 1 EX Chip 2 EX Chip 2 EX Chip 2 EX Chip 2 EX Chip 2 EX Chip 2 EX Chip 2 EX Chip 2 > --- WEAPON (2) ------- AWS/EX-DEC > --- INVENTORY (2) ---- (None) Peak State ------------ > --- POWER ------------ Heavy Deuterium Engine > --- PROPULSION ------- Combat Antigrav System > --- UTILITY ---------- Advanced Launcher Guidance Computer Improved Target Analyzer Experimental Core Analyzer Improved Armor Integrity Analyzer EX Chip 1 EX Chip 1 EX Chip 1 EX Chip 1 EX Chip 1 EX Chip 1 EX Chip 1 EX Chip 1 EX Chip 1 EX Chip 1 EX Chip 2 EX Chip 2 EX Chip 2 EX Chip 2 EX Chip 2 EX Chip 2 EX Chip 2 EX Chip 2 > --- WEAPON ----------- AWS/EX-DEC > --- INVENTORY -------- Deploy-a-Sentry [Rating: 99] Favorites ----------- Power Light Angular Momentum Engine Engine Light Angular Momentum Engine Propulsion Carbon-fiber Leg Leg Carbon-fiber Leg Wheel Compact Wheel Hover Unit Combat Antigrav System Flight Unit Flight Unit Utility EX Chip 1 Device Improved Heat Sink Storage Small Storage Unit Processor Advanced Launcher Guidance Computer Hackware EX Chip 1 Weapon Beamcaster Energy Gun Beamcaster Ballistic Gun Light Assault Rifle Build | -11 -10 -10 -9 -9 -9 ------- Run | Yrd Mat Min Mat Min Exi Slots Evolved . | . . . . . . Power . | . . . . . . Propulsion . | . . . . . . Utility . | . . . . . . Weapon . | . . . . . . Parts Attached . | . . . . . . Power . | . . . . . . Engine . | . . . . . . Core . | . . . . . . Reactor . | . . . . . . Propulsion . | . . . . . . Treads . | . . . . . . Leg . | . . . . . . Wheel . | . . . . . . Hover . | . . . . . . Flight . | . . . . . . Utility . | . . . . . . Device . | . . . . . . Storage . | . . . . . . Processor . | . . . . . . Hackware . | . . . . . . Protection . | . . . . . . Artifact . | . . . . . . Weapon . | . . . . . . Energy Gun . | . . . . . . Energy Cannon . | . . . . . . Ballistic Gun . | . . . . . . Ballistic Cannon . | . . . . . . Launcher . | . . . . . . Special Weapon . | . . . . . . Impact Weapon . | . . . . . . Slashing Weapon . | . . . . . . Piercing Weapon . | . . . . . . Special Melee Weapon . | . . . . . . Unidentified Prototypes . | . . . . . . Parts Lost 6 | . . . 5 1 . Power 1 | . . . 1 . . Propulsion 3 | . . . 2 1 . Utility 1 | . . . 1 . . Weapon 1 | . . . 1 . . Highest Loss Streak 3 | . . . 3 1 . To Critical Strikes . | . . . . . . Average Backups . | . . . . 1 . Power . | . . . . . . Propulsion . | . . . . . . Utility . | . . . . . . Weapon . | . . . . . . Tool/Special . | . . . . . . Unused Backups 3 | . . . . 3 . Power . | . . . . . . Propulsion 1 | . . . . 1 . Utility 2 | . . . . 2 . Weapon . | . . . . . . Tool/Special . | . . . . . . Average Slot Usage (%) 81 | . . 90 90 65 90 Engine 11 | . . 14 11 14 5 Leg 18 | . . 29 32 . . Wheel 4 | . . . . 18 . Flight 2 | . . . . 8 3 Device 19 | . . 29 28 9 . Storage 2 | . . . . 9 . Processor 1 | . . . . . 12 Hackware 8 | . . . . . 58 Energy Gun 9 | . . 14 15 . 2 Ballistic Gun 1 | . . . . 4 3 Peak Build Rating 99 | . . 22 22 5 99 Average Rating 25 | . . 20 19 3 86 On Entrance 4 | . . . 22 . 3 Avg Prop Armor Cover (%) . | . . . . . . Naked Turns 370 | . 97 66 5 200 2 Heaviest Build 21 | . . 16 16 9 21 Greatest Support 32 | 3 3 30 30 32 21 Greatest Overweight (x) . | . . . . . . Average Overweight (x) . | . . . . . . Largest Inventory Capacity 4 | . . 1 1 4 2 Average Capacity 1 | . . . . 1 1 Most Carried 3 | . . 1 1 3 1 Average Carried . | . . . . 1 . Final Capacity 2 | . . 1 . . 2 Final Carried 1 | . . 1 . . . Class Distribution -------------------- 55% | Grunt 14% | Cogmind 12% | Assembler 11% | Recycler 6% | Swarmer Dominant Class ---------------- Cogmind | -10/Materials Grunt | -10/Mines Grunt | -9/Materials Recycler | -9/Mines Assembler | -9/Exiles Resources | -11 -10 -10 -9 -9 -9 ----------- Run | Yrd Mat Min Mat Min Exi Matter Collected 50 | . . . . 50 . Remotely 32 | . . . . 32 . Salvage Created 447 | . . 76 308 44 19 Parts 48 | . . 10 32 5 1 Haulers Intercepted . | . . . . . . Recyclers Shooed . | . . . . . . Parts Field Recycled . | . . . . . . Retrieved Matter . | . . . . . . Parts Self-Destructed . | . . . . . . Prevented . | . . . . . . Parts Restored . | . . . . . . Kills | -11 -10 -10 -9 -9 -9 ------- Run | Yrd Mat Min Mat Min Exi Combat Hostiles Destroyed 18 | . . 3 11 4 . Guns 18 | . . 3 11 4 . Classes Destroyed 7 | . . 2 4 . 1 Worker 1 | . . . 1 . . Tunneler 1 | . . 1 . . . Watcher 2 | . . . 2 . . Swarmer 15 | . . 3 8 4 . Grunt 1 | . . . 1 . . Sentry 3 | . . . 3 . . Zionite 1 | . . . . . 1 Best Kill Streak 7 | . . 2 7 2 . Combat Bots Only 7 | . . 2 7 2 . Max Kills in Single Turn 1 | . . 1 1 1 1 Gunslinging . | . . . . . . Exploded . | . . . . . . Melee . | . . . . . . Uniques/NPCs Destroyed . | . . . . . . Combat | -11 -10 -10 -9 -9 -9 -------- Run | Yrd Mat Min Mat Min Exi Hostile Shots Fired 137 | . . 15 58 55 9 Missed 52 | . . 5 17 27 3 Hits 85 | . . 10 41 28 6 Melee 1 | . . . . 1 . Projectile 84 | . . 10 41 27 6 Damage Taken 1011 | . . 105 532 280 94 Core 419 | . . 11 170 198 40 Absorbed by Shields . | . . . . . . Core Remaining (%) 97 | 100 . 95 . . . Volleys Fired 95 | . . 20 53 22 . Largest 1 | . . 1 1 1 . Hottest 75 | . . 75 75 20 . Shots Fired 95 | . . 20 53 22 . Gun 95 | . . 20 53 22 . Cannon . | . . . . . . Launcher . | . . . . . . Special . | . . . . . . Kinetic 22 | . . . . 22 . Thermal 73 | . . 20 53 . . Explosive . | . . . . . . Electromagnetic . | . . . . . . Robot Hit Streak 9 | . . 3 9 7 . Robot Miss Streak 4 | . . 4 4 2 . Penetration Max . | . . . . . . Secondary Targets . | . . . . . . Shots Hit Robots 57 | . . 7 32 18 . Core Hits 27 | . . 4 15 7 1 Critical Kills . | . . . . . . Critical Parts Destroyed . | . . . . . . Critical Strikes 5 | . . . 5 . . Burn 5 | . . . 5 . . Melee Attacks . | . . . . . . Impact . | . . . . . . Slashing . | . . . . . . Piercing . | . . . . . . Sneak Attacks . | . . . . . . Combat Hostiles . | . . . . . . Follow-up Attacks . | . . . . . . Damage Inflicted 1058 | . . 146 740 148 24 Guns 1034 | . . 146 740 148 . Cannons . | . . . . . . Explosions . | . . . . . . Melee . | . . . . . . Ramming 24 | . . . . . 24 Kinetic 148 | . . . . 148 . Thermal 886 | . . 146 740 . . Explosive . | . . . . . . Electromagnetic . | . . . . . . Impact . | . . . . . . Slashing . | . . . . . . Piercing . | . . . . . . Highest Corruption . | . . . . . . Average Corruption . | . . . . . . Corruption Purged . | . . . . . . Corruption Blocked . | . . . . . . Overload Shots . | . . . . . . Overflow Damage . | . . . . . . Projectiles . | . . . . . . Explosions . | . . . . . . Melee . | . . . . . . Knockbacks . | . . . . . . Impact . | . . . . . . Kinetic . | . . . . . . Secondary . | . . . . . . Self-Inflicted Damage 12 | . . . . . 12 Shots . | . . . . . . Rammed 1 | . . . . . 1 Targets Rammed 1 | . . . . . 1 Kicked . | . . . . . . Crushed . | . . . . . . Highest Temperature 19 | . . . 9 19 . Average Temperature 9 | . . . 7 9 . Received Heat Transfer 87 | . . . 36 51 . Siege Activations . | . . . . . . Martial Activations . | . . . . . . Shielding Activations . | . . . . . . Robots Disrupted . | . . . . . . Combat Hostiles . | . . . . . . Robots Corrupted . | . . . . . . Combat Hostiles . | . . . . . . Parts Fried . | . . . . . . Impact Corruptions . | . . . . . . Robots Melted . | . . . . . . Combat Hostiles . | . . . . . . Parts Melted 5 | . . 1 4 . . Heat Transferred 1887 | . . 259 1628 . . Parts Sabotaged . | . . . . . . Parts Stolen . | . . . . . . Parts Stripped . | . . . . . . Power Chain Reactions . | . . . . . . Alert | -11 -10 -10 -9 -9 -9 ------- Run | Yrd Mat Min Mat Min Exi Maximum Alert Level . | . . . . . . Low Security (%) 100 | 100 100 100 100 100 . Level 1 . | . . . . . . Level 2 . | . . . . . . Level 3 . | . . . . . . Level 4 . | . . . . . . Level 5 . | . . . . . . High Security . | . . . . . . Max Security . | . . . . . . Peak Influence 186 | . . 70 186 111 . Initial 43 | . . . . 43 . Average 40 | . . 9 79 46 . Influence Increases 860 | . . 105 482 273 . Destroy 0b10 Robot/C 460 | . . 60 320 80 . Destroy 0b10 Robot/NC 20 | . . 5 15 . . Destroy Leader 114 | . . 10 84 20 . Allied During Kill 36 | . . . 36 . . Successful Hack 20 | . . . 12 8 . Disable Machine 30 | . . 15 15 . . Lose Combat Pursuer 180 | . . 15 . 165 . Influence Decreases 860 | . . 105 371 319 65 Entered New Map 133 | . . . . 68 65 Time Decay 626 | . . 105 281 240 . Lost Part 60 | . . . 50 10 . Lost Ally 40 | . . . 40 . . Miscellaneous 1 | . . . . 1 . Squads Dispatched 3 | . 1 . 2 . . Investigation 1 | . 1 . . . . Extermination . | . . . . . . Reinforcement 2 | . . . 2 . . Assault . | . . . . . . Garrison . | . . . . . . Intercept . | . . . . . . Searches Triggered . | . . . . . . Construction Impeded . | . . . . . . Haulers Reinforced . | . . . . . . Active Scanning Responses . | . . . . . . Cargo Convoy Interrupts . | . . . . . . Stealth | -11 -10 -10 -9 -9 -9 --------- Run | Yrd Mat Min Mat Min Exi Distress Signals 1 | . . . 1 . . Communications Jammed . | . . . . . . Distress Signals . | . . . . . . Times Spotted 66 | . 1 3 27 25 10 Peak Tracking Total 13 | . 2 3 4 7 13 Tactical Retreats 6 | . . 1 . 5 . Traps | -11 -10 -10 -9 -9 -9 ------- Run | Yrd Mat Min Mat Min Exi Traps Triggered 1 | . 1 . . . . Indirectly . | . . . . . . Trap Hack Attempts . | . . . . . . Triggered . | . . . . . . Disarmed . | . . . . . . Reprogrammed . | . . . . . . Reused . | . . . . . . Traps Extracted . | . . . . . . Installed 2 | . . 2 . . . Triggered . | . . . . . . Most Traps Carried 1 | . . 1 1 . . Machines | -11 -10 -10 -9 -9 -9 ---------- Run | Yrd Mat Min Mat Min Exi Machines Disabled 2 | . . 1 1 . . Max in Single Turn 1 | . . 1 . . . Machines Repaired . | . . . . . . Machines Dismantled . | . . . . . . Machines Sabotaged . | . . . . . . Overloaded Fab Kills . | . . . . . . Hacking | -11 -10 -10 -9 -9 -9 --------- Run | Yrd Mat Min Mat Min Exi Machines Accessed 6 | . 1 . 3 1 1 Terminals 5 | . 1 . 3 1 . Fabricators . | . . . . . . Repair Stations . | . . . . . . Recycling Units . | . . . . . . Scanalyzers . | . . . . . . Garrison Access . | . . . . . . Total Hacks 15 | . 1 . 8 5 1 Successful 9 | . 1 . 4 3 1 Failed 6 | . . . 4 2 . Catastrophic . | . . . . . . Database Lockouts . | . . . . . . Manual 12 | . 2 . 5 5 . Terminals 14 | . 1 . 8 5 . Fabricators . | . . . . . . Repair Stations . | . . . . . . Recycling Units . | . . . . . . Scanalyzers . | . . . . . . Garrison Access . | . . . . . . Terminal Hacks 7 | . . . 4 2 1 Record 2 | . . . 1 . 1 Robot Analysis 2 | . . . 1 1 . Prototype ID Bank 1 | . . . 1 . . Branch Access Points 1 | . . . 1 . . Zone Layout 1 | . . . . 1 . Fabricator Hacks . | . . . . . . Repair Station Hacks . | . . . . . . Recycling Unit Hacks . | . . . . . . Scanalyzer . | . . . . . . Garrison Access Hacks . | . . . . . . Unauthorized Hacks 2 | . 1 . . 1 . Terminals 2 | . 1 . . 1 . Track 1 | . . . . 1 . Botnet 1 | . 1 . . . . Fabricators . | . . . . . . Repair Stations . | . . . . . . Recycling Units . | . . . . . . Scanalyzers . | . . . . . . Garrison Access . | . . . . . . Data Cores Recovered . | . . . . . . Used . | . . . . . . Hacking Detections 2 | . . . 2 . . Full Trace Events . | . . . . . . Feedback Events . | . . . . . . Feedback Blocked . | . . . . . . Robot Schematics Acquired . | . . . . . . Robots Built . | . . . . . . Authchips . | . . . . . . Time . | . . . . . . Total Robot Build Rating . | . . . . . . Part Schematics Acquired . | . . . . . . Parts Built . | . . . . . . Authchips . | . . . . . . Time . | . . . . . . Total Part Build Rating . | . . . . . . Part Studies Acquired . | . . . . . . Parts Repaired . | . . . . . . Time . | . . . . . . Parts Recycled . | . . . . . . Recycled Matter . | . . . . . . Retrieved Matter . | . . . . . . Retrieved Components . | . . . . . . Parts Scanalyzed . | . . . . . . Part Schematics Acquired . | . . . . . . Parts Damaged . | . . . . . . Bothacking | -11 -10 -10 -9 -9 -9 ------------ Run | Yrd Mat Min Mat Min Exi Used RIF Installer . | . . . . . . Robots Hacked 1 | . . . . 1 . Non-combat . | . . . . . . Combat 1 | . . . . 1 . Robot Hacks Applied 1 | . . . . 1 . find_shortcuts 1 | . . . . 1 . Relay Couplers Released . | . . . . . . Fabnet Peak Effective % . | . . . . . . Robots Rewired . | . . . . . . Allies Hacked . | . . . . . . Hacks Repelled . | . . . . . . Allies | -11 -10 -10 -9 -9 -9 -------- Run | Yrd Mat Min Mat Min Exi Total Allies 5 | . . 4 1 . . Largest Group 3 | . . 3 3 . . Highest-Rated Group 40 | . . 40 40 . . Highest-Rated Ally 31 | . . 31 16 . . Total Orders . | . . . . . . Ally Attacks 40 | . . . 39 . 1 Total Damage 407 | . . . 349 . 58 Kills 6 | . . . 5 . 1 Allies Corrupted . | . . . . . . Allies Melted . | . . . . . . Turrets Deployed 1 | . . . . . 1 Intel | -11 -10 -10 -9 -9 -9 ------- Run | Yrd Mat Min Mat Min Exi Active Infowar (turns) . | . . . . . . Robot Analysis Total 4 | . . 1 1 2 . Derelict Logs Recovered 3 | . . 2 . 1 . Drone Launches . | . . . . . . Drone Recoveries . | . . . . . . Exploration | -11 -10 -10 -9 -9 -9 ------------- Run | Yrd Mat Min Mat Min Exi Turns Passed 2615 | 9 97 842 674 609 384 Spaces Moved 2477 | 18 80 555 439 848 537 Core 605 | 18 80 129 10 365 3 Treads . | . . . . . . Legs 855 | . . 426 429 . . Wheels 291 | . . . . 291 . Hover 417 | . . . . . 417 Flight 309 | . . . . 192 117 Fastest Speed 37 | 50 50 50 50 37 40 Average Speed 83 | 50 50 103 118 64 71 Slowest Speed 120 | 50 50 120 120 100 80 Overloaded Moves . | . . . . . . Propulsion Burnouts . | . . . . . . Robots Hopped 2 | . . . . 2 . Potential Cave-ins . | . . . . . . Cave-ins Triggered . | . . . . . . Exploration Rate (%) 59 | 3 25 98 54 98 77 Regions Visited 5 Branch Regions 3 Pre-discovered Areas 2 | . . 1 . . 1 Known Exits Taken 1 | . . . 1 . . Unknown Exits Taken 4 | 1 1 1 . 1 . Scrap Searched 3 | . . 2 . 1 . Spaces Dug . | . . . . . . Terrain Destroyed . | . . . . . . Melee . | . . . . . . Projectile . | . . . . . . AOE . | . . . . . . Terrain Rammed . | . . . . . . Walls Destroyed . | . . . . . . Machines Disabled . | . . . . . . Actions | -11 -10 -10 -9 -9 -9 --------- Run | Yrd Mat Min Mat Min Exi Total 2926 | 17 136 802 539 892 540 Wait 346 | . 57 221 48 20 . Move 2468 | 17 79 554 438 843 537 Hop 2 | . . . . 2 . Pick Up 7 | . . 3 . 4 . Fast Attach . | . . . . . . Attach . | . . . . . . Detach . | . . . . . . Swap . | . . . . . . Drop 4 | . . 2 . 1 1 Fire 95 | . . 20 53 22 . Melee . | . . . . . . Ram 1 | . . . . . 1 Kick . | . . . . . . Crush . | . . . . . . Escape Stasis . | . . . . . . Rewire 1 | . . . . . 1 Trap 2 | . . 2 . . . Miscellaneous . | . . . . . . Route ------- -11/Scrapyard -10/Materials -10/Mines (discovered 3 exits: *Mat x2 / [*Sub]) -9/Materials (discovered 3 exits: [*Mat] / *Min x2) -9/Mines (discovered 3 exits: [*Mat x2] / *Exi) -9/Exiles (discovered 2 exits: [*Min x2]) History --------- Turn | Location | Event 3 | -11/Scrapyard | Discovered new exit (range 15) 10 | -11/Scrapyard | Entered Materials 100 | -10/Materials | Discovered new exit (range 16) 107 | -10/Materials | Entered Mines 156 | -10/Mines | Received a Mining Laser from a helpful Derelict 346 | -10/Mines | Learned Materials emergency access door positions 359 | -10/Mines | Assisted by bots powering up and referring to "LRC-V3" 385 | -10/Mines | Found a hidden stash of uninstalled traps 556 | -10/Mines | Discovered new exit (range 6) 703 | -10/Mines | Discovered new exit (range 9) 715 | -10/Mines | Discovered new exit (range 11) 949 | -10/Mines | Entered Materials 949 | -9/Materials | Accompanied by 3 allies 1189 | -9/Materials | Discovered new exit (range 15) 1405 | -9/Materials | Destroyed 7 combat bots 1427 | -9/Materials | Discovered new exit (range 7) 1554 | -9/Materials | Identified exit to Mines 1623 | -9/Materials | Entered Mines 1633 | -9/Mines | Core integrity fell below 50% 1649 | -9/Mines | Lost 3 parts (2n1w) 1664 | -9/Mines | Discovered new exit (range 12) 1671 | -9/Mines | Received a Rocket Launcher from a helpful Derelict 1672 | -9/Mines | Discovered new exit (range 13) 1817 | -9/Mines | Learned Materials stockpile data 2117 | -9/Mines | Core integrity fell below 20% 2206 | -9/Mines | Deemed a non-threat by the Exiles lab entrance 2206 | -9/Mines | Discovered new exit (range 5) 2232 | -9/Mines | Entered Exiles 2238 | -9/Exiles | Discovered new exit (range 15) 2243 | -9/Exiles | Met 8R-AWN 2249 | -9/Exiles | Met EX-HEX 2264 | -9/Exiles | Met EX-DEC 2273 | -9/Exiles | Learned location of Zion (-6) 2281 | -9/Exiles | Took control of EX-DEC (ally) 2385 | -9/Exiles | Discovered new exit (range 10) 2435 | -9/Exiles | Met EX-BIN 2446 | -9/Exiles | Aligned with FarCom system 2447 | -9/Exiles | Given EX-Vault access code 2584 | -9/Exiles | Visited The Gauntlet 2593 | -9/Exiles | Attacked by the Exiles 2616 | -9/Exiles | DAS Turret deployed 2616 | -9/Exiles | Destroyed by as-44580 with Assembled Rifle Last Messages --------------- 02447_ FarCom alignment achieved. EX-BIN: All done! Way to be a champ, here's the access code as promised: \\464K. Only take ONE, mind you, and sorry we don't have much left to pick from. A bunch of our other prototypes were already given to Derelicts out handling other tasks for us. I haven't taken inventory for a while and I'm not sure what's in there now, but if there are more than one of the same prototype you can choose to take all of those and it just counts as your one! 02564_ A-02 Transporter is unpowered. 02592_ Slammed into DK-RAY. 02592_ DK-RAY destroyed. 02592_ Hvy. Deuterium Engine broken. 02592_ Destabilizing: Short circuit. 02593_ EXILES: Hostile robot within lab perimeter. Defensive protocols time, folks! 02612_ EX-BIN: "I just want to science!" 02615_ Dropped Deploy-a-Sentry. 02616_ DAS Turret deployed. 02616_ as-30919 destroyed. Map ----- +----------------------------------------------------+ | "###"" ######???### ###?######"" #? | | "#?##" """#####X# #"###""""""" ## | | ##??#" """""" " "" # | | """"###???#"# "" """ " | | ####??????#### " " | | ?????????????### | | ???????????????### | | ?????????????????## | | ??????????????????## | | ???????????????????##" | | ????????????????????#""" """""" | | ???????????????????##" ######""" | | ???????????????????#"" ""##????#####" | | ??????????????????##""" """##?????????## | | ??????????????????#"""! z"""##???????????# | | ??????????????????#"""! ""#???????????## | | ??????????????????#""%= ########??####" | | ??????????????????#""" ##aaa####""" | | ??????????????????#"" """" | | ??????????????????##"" | | ???????????????????#"""" | | ???????????????????## | | ????????????????????#" a a" "" | | ????????????????????#"""" a ""## ##"" | | ????????????????????#"" ca ""#### #### | | ????????????????????#" c """"##??# #??? | | ????????????????????#""" % """#???# #??? | | ????????????????????## t ""##???! ??? | | ?????????????????????#"" aa """##???#" ?? | | ?????????????????????##""" ##????#" ?? | | ??????????????????????##"""" c ##?????#!!""!"? | | ???????????????????????### #???????######? | | ?????????????????????????##### ##?????????????? | | ?????????????????????????????## #??????????????? | | ??????????????????????????????# #??????????????? | | ??????????????????????????????# #??????????????? | | ??????????????????????????????# #??????????????? | | ??????????????????????????????# #??????????????? | | ??????????????????????????????# #??????????????? | | ??????????????????????????????# #??????????????? | | ??????????????????????????????# #??????????????? | | ??????????????????????????????# #??????????????? | | ??????????????????????????????# #??????????????? | | ????????????????????##"""###### ########???????? | | ???????????????????""" """""" """""""#????"??? | | ???????????????????"" %"#"" ""#?? | | ????????????????? = " ""#?? | | ????????????????? " " "#?? | | ????????????????? " """#?? | | ?????????????????? "" #"" ""??? | +----------------------------------------------------+ Best States ------------- Heat Dissipation 51 Energy Generation 23 Energy Capacity 235 Matter Stores 100 Matter Capacity 100 Sight Range 16 Terrain Scan Density 10 Resistance: EM 90 Evasion (%) 62 Launcher Accuracy 40 Target Analysis 6 Core Analysis 8 Armor Integrity Analysis 40 Offensive Hacking 70 Defensive Hacking 56 Item Schematics ----------------- None Robot Schematics ------------------ None Fabricated ------------ Nothing Repaired ---------- Nothing Studied --------- None Alien Tech Used ----------------- None Achievements -------------- None Challenges ------------ None Polymind | -11 -10 -10 -9 -9 -9 ---------- Run | Yrd Mat Min Mat Min Exi Hosts 4 | . . 1 . 2 1 Combat Hostiles 1 | . . . . 1 . Allies 2 | . . 1 . . 1 Unique Host Classes 4 | . . 1 . 2 1 Average Host Suspicion 74 | . . 97 93 69 . Unsuspicious Activity 35 | . . 7 . 2 26 Returns to Shadow . | . . . . . . Fuzzy Dispatches . | . . . . . . Protomatter Created 101 | . . 5 90 6 . Used 58 | . . 14 . 11 33 Decayed 3 | . . . 3 . . Highest Spend 33 | . . 14 . 6 33 Top 5 Hosts by Kills: OL-1OM(g) (-10/Mines: 14) S-10 Pest (-9/Mines: 4) Game ------ Seed ActivePotentialFlightbrick Manual? 0 Play Time 00:20:37 Cumulative 691.4 hours Start 2026.04.04 @ 18:52:25 End 2026.04.04 @ 19:10:01 Sessions 1 Manual Loads 0 Difficulty Rogue Special Mode Winter2022/Polymind Game No. 384 Rogue 384 Adventurer 0 Explorer 0 Win Type - Total 30 Types 15/1/6/2/1/1/1/2/1/0 Lore% 93 Gallery% 87 Achievement% 78 Wizard Run 0 Options --------- Layout 0 ASCII 0 Keyboard 0 Movement Mouse Keybinds 0 Fullscreen 2 Font 24/Smallcaps Map View 76x50 Zoom Use 0% Tactical HUD 1 Map Filters NONE Filters NONE Steam 1 RUN: a1b43aee-99d3-407b-8a34-40ea90dd4325